[Event "Eurasia Open Cup 2019"]
[Site "Ekaterinburg"]
[Date "2019.08.08"]
[Round "8.34"]
[White "Inozemtsev, Sergei"]
[Black "Nosacheva, Mariya"]
[Result "1/2-1/2"]
[ECO "C68"]
[WhiteElo "2295"]
[BlackElo "2150"]
[Annotator "NA"]
[PlyCount "75"]
[EventDate "2019.07.31"]
[EventType "swiss"]
[EventCountry "RUS"]
[SourceTitle "playchess.com"]
[Source "ChessBase"]
[SourceQuality "1"]
[TimeControl "5400+30"]

1. e4 {[%emt 0:03:56]} e5 {[%emt 0:00:00]} 2. Nf3 {[%emt 0:00:06]} Nc6 {[%emt 0:00:00]} 3. Bb5 {[%emt 0:00:07]} a6 {[%emt 0:00:00]} 4. Bxc6 {[%emt 0:00:29]} dxc6 {[%emt 0:00:00]} 5. O-O {[%emt 0:00:05]} Ne7 {[%emt 0:00:45]} 6. d4 {[%emt 0:00:47]} exd4 {[%emt 0:01:28]} 7. Nxd4 {[%emt 0:00:38]} Ng6 {[%emt 0:03:37]} 8. Nc3 {[%emt 0:05:03]} Bd6 {[%emt 0:03:58]} 9. f4 {[%emt 0:07:44]} c5 {[%emt 0:08:42]} 10. Nde2 {[%emt 0:02:53]} f6 {[%emt 0:01:25]} 11. Be3 {[%emt 0:01:32]} Bd7 {[%emt 0:03:37]} 12. Qd5 {[%emt 0:02:38]} Bc6 {[%emt 0:01:30]} 13. Qh5 {[%emt 0:00:42]} O-O {[%emt 0:01:49]} 14. Bxc5 {[%emt 0:00:48]} f5 {[%emt 0:03:03]} 15. Bxd6 {[%emt 0:01:56]} Qxd6 {[%emt 0:00:07]} 16. Rad1 {[%emt 0:06:08]} Qe7 {[%emt 0:14:23]} 17. e5 {[%emt 0:07:22]} Nh4 {[%emt 0:06:07]} 18. Rf2 {[%emt 0:01:30]} Rad8 {[%emt 0:01:36]} 19. Rd3 {[%emt 0:02:09]} Be8 {[%emt 0:02:13]} 20. Qg5 {[%emt 0:02:29]} Qxg5 {[%emt 0:01:24]} 21. fxg5 {[%emt 0:00:00]} Bc6 {[%emt 0:00:40]} 22. Nd4 {[%emt 0:01:04]} Bxg2 {[%emt 0:00:52]} 23. Nxf5 {[%emt 0:00:37]} Nxf5 {[%emt 0:00:40]} 24. Rxf5 {[%emt 0:08:22]} Bc6 {[%emt 0:02:30]} 25. Rf2 {[%emt 0:01:22]} Rde8 {[%emt 0:02:15]} 26. Re3 {[%emt 0:00:46]} Rxf2 {[%emt 0:02:21]} 27. Kxf2 {[%emt 0:00:00]} Kf7 {[%emt 0:00:04]} 28. Kg3 {[%emt 0:02:53]} Rd8 {[%emt 0:06:41]} 29. Rd3 {[%emt 0:05:53]} Re8 {[%emt 0:00:07]} 30. Kf4 {[%emt 0:00:12]} Ke6 {[%emt 0:00:05]} 31. Rh3 {[%emt 0:00:41]} Rf8+ {[%emt 0:02:19]} 32. Kg4 {[%emt 0:00:28]} Kxe5 {[%emt 0:02:34]} 33. Re3+ {[%emt 0:05:20]} Kd6 {[%emt 0:01:05]} 34. Kg3 {[%emt 0:00:00]} Rf1 {[%emt 0:01:58]} 35. h4 {[%emt 0:05:29]} Rg1+ {[%emt 0:01:09]} 36. Kf4 {[%emt 0:02:28]} Rf1+ {[%emt 0:00:37]} 37. Kg3 {[%emt 0:00:00]} Rg1+ {[%emt 0:00:14]} 38. Kf4 {[%emt 0:00:12]} 1/2-1/2

[Event "Eurasia Open Cup 2019"]
[Site "Ekaterinburg"]
[Date "2019.08.08"]
[Round "8.35"]
[White "Miroshnik, Ekaterina"]
[Black "Matsenko, Andrei"]
[Result "1/2-1/2"]
[ECO "A55"]
[WhiteElo "2103"]
[BlackElo "2293"]
[Annotator "NA"]
[PlyCount "83"]
[EventDate "2019.07.31"]
[EventType "swiss"]
[EventCountry "RUS"]
[SourceTitle "playchess.com"]
[Source "ChessBase"]
[SourceQuality "1"]
[TimeControl "5400+30"]

1. d4 {[%emt 0:00:00]} Nf6 {[%emt 0:01:58]} 2. c4 {[%emt 0:00:00]} d6 {[%emt 0:00:33]} 3. Nf3 {[%emt 0:00:00]} Nbd7 {[%emt 0:00:00]} 4. Nc3 {[%emt 0:00:00]} e5 {[%emt 0:00:00]} 5. e4 {[%emt 0:03:02]} c6 {[%emt 0:00:45]} 6. g3 {[%emt 0:00:28]} Be7 {[%emt 0:00:09]} 7. Bg2 {[%emt 0:00:13]} O-O {[%emt 0:00:05]} 8. O-O {[%emt 0:00:33]} a6 {[%emt 0:00:01]} 9. Qc2 {[%emt 0:02:52]} b5 {[%emt 0:03:21]} 10. dxe5 {[%emt 0:01:37]} dxe5 {[%emt 0:03:01]} 11. Rd1 {[%emt 0:04:33]} Qb6 {[%emt 0:07:16]} 12. a3 {[%emt 0:12:04]} bxc4 {[%emt 0:02:34]} 13. Nd2 {[%emt 0:06:50]} Bc5 {[%emt 0:11:15]} 14. Nxc4 {[%emt 0:00:14]} Qa7 {[%emt 0:00:38]} 15. Be3 {[%emt 0:07:11]} Bxe3 {[%emt 0:02:20]} 16. Nxe3 {[%emt 0:00:09]} Nc5 {[%emt 0:03:04]} 17. b4 {[%emt 0:06:19]} Ne6 {[%emt 0:02:12]} 18. Ne2 {[%emt 0:03:03]} a5 {[%emt 0:06:49]} 19. Qb2 {[%emt 0:10:10]} Ba6 {[%emt 0:02:02]} 20. Nc1 {[%emt 0:05:34]} Qc7 {[%emt 0:08:42]} 21. Nb3 {[%emt 0:01:19]} axb4 {[%emt 0:07:19]} 22. axb4 {[%emt 0:00:05]} Bb5 {[%emt 0:00:11]} 23. Na5 {[%emt 0:06:47]} Rfd8 {[%emt 0:04:17]} 24. Kh1 {[%emt 0:07:43]} Nd4 {[%emt 0:02:38]} 25. Nf5 {[%emt 0:00:59]} Nxf5 {[%emt 0:00:55]} 26. exf5 {[%emt 0:00:07]} e4 {[%emt 0:00:43]} 27. Rac1 {[%emt 0:04:17]} h5 {[%emt 0:02:50]} 28. Qc3 {[%emt 0:02:45]} Rxd1+ {[%emt 0:02:58]} 29. Rxd1 {[%emt 0:00:04]} Rd8 {[%emt 0:00:04]} 30. Rxd8+ {[%emt 0:04:41]} Qxd8 {[%emt 0:00:03]} 31. h3 {[%emt 0:00:32]} h4 {[%emt 0:07:37]} 32. g4 {[%emt 0:02:16]} Qd1+ {[%emt 0:00:17]} 33. Kh2 {[%emt 0:00:33]} Qd6+ {[%emt 0:00:15]} 34. Kh1 {[%emt 0:00:07]} Nd5 {[%emt 0:06:56]} 35. Qd4 {[%emt 0:05:59]} e3 {[%emt 0:00:09]} 36. fxe3 {[%emt 0:00:15]} Qg3 {[%emt 0:00:44]} 37. Nc4 {[%emt 0:03:04]} Nxb4 {[%emt 0:03:51]} 38. Ne5 {[%emt 0:01:06]} Nd5 {[%emt 0:02:14]} 39. Nxf7 {[%emt 0:00:23]} Nxe3 {[%emt 0:02:12]} 40. Qd8+ {[%emt 0:00:46]} Kxf7 {[%emt 0:00:03]} 41. Qd7+ {[%emt 0:00:00]} Kf8 {[%emt 0:01:32]} 42. Qd8+ {[%emt 0:00:00]} 1/2-1/2

[Event "Eurasia Open Cup 2019"]
[Site "Ekaterinburg"]
[Date "2019.08.08"]
[Round "8.36"]
[White "Pogorelskikh, Sergey"]
[Black "Dubnikova, Anastasia"]
[Result "0-1"]
[ECO "C16"]
[WhiteElo "2284"]
[BlackElo "1991"]
[Annotator "NA"]
[PlyCount "122"]
[EventDate "2019.07.31"]
[EventType "swiss"]
[EventCountry "RUS"]
[SourceTitle "playchess.com"]
[Source "ChessBase"]
[SourceQuality "1"]
[TimeControl "5400+30"]

1. e4 {[%emt 0:00:00]} e6 {[%emt 0:00:00]} 2. d4 {[%emt 0:00:02]} d5 {[%emt 0:00:00]} 3. Nc3 {[%emt 0:00:38]} Bb4 {[%emt 0:00:00]} 4. e5 {[%emt 0:00:05]} b6 {[%emt 0:00:00]} 5. a3 {[%emt 0:00:22]} Bxc3+ {[%emt 0:03:15]} 6. bxc3 {[%emt 0:00:11]} Ba6 {[%emt 0:06:31]} 7. Bxa6 {[%emt 0:05:35]} Nxa6 {[%emt 0:00:05]} 8. Qg4 {[%emt 0:00:17]} Kf8 {[%emt 0:19:27]} 9. Ne2 {[%emt 0:02:44]} Ne7 {[%emt 0:02:40]} 10. O-O {[%emt 0:01:13]} h5 {[%emt 0:02:11]} 11. Qf3 {[%emt 0:01:55]} c5 {[%emt 0:03:35]} 12. Bg5 {[%emt 0:07:50]} Qe8 {[%emt 0:02:30]} 13. Nf4 {[%emt 0:04:22]} Nf5 {[%emt 0:00:16]} 14. Nxh5 {[%emt 0:03:38]} f6 {[%emt 0:00:43]} 15. Ng3 {[%emt 0:17:17]} fxg5 {[%emt 0:01:28]} 16. Nxf5 {[%emt 0:00:10]} exf5 {[%emt 0:00:47]} 17. Qxf5+ {[%emt 0:00:52]} Kg8 {[%emt 0:05:02]} 18. f4 {[%emt 0:18:05]} gxf4 {[%emt 0:02:54]} 19. Rxf4 {[%emt 0:01:47]} Nc7 {[%emt 0:00:57]} 20. Raf1 {[%emt 0:05:50]} Ne6 {[%emt 0:08:18]} 21. Rg4 {[%emt 0:08:38]} Rh6 {[%emt 0:00:15]} 22. h3 {[%emt 0:00:41]} Qd7 {[%emt 0:00:55]} 23. Qd3 {[%emt 0:05:16]} c4 {[%emt 0:02:36]} 24. Qe3 {[%emt 0:00:30]} Kh7 {[%emt 0:01:09]} 25. Rg3 {[%emt 0:04:52]} Rf8 {[%emt 0:05:33]} 26. Rgf3 {[%emt 0:00:58]} Rxf3 {[%emt 0:00:58]} 27. Qxf3 {[%emt 0:01:34]} Kg8 {[%emt 0:10:02]} 28. Rf2 {[%emt 0:01:39]} Rh4 {[%emt 0:01:26]} 29. Qg3 {[%emt 0:01:29]} Re4 {[%emt 0:02:05]} 30. Qg6 {[%emt 0:01:23]} Nf8 {[%emt 0:01:13]} 31. Qg3 {[%emt 0:02:00]} Qe7 {[%emt 0:00:35]} 32. Rf6 {[%emt 0:01:31]} Qxa3 {[%emt 0:00:52]} 33. Rd6 {[%emt 0:00:07]} Qc1+ {[%emt 0:00:34]} 34. Kh2 {[%emt 0:00:03]} Qf4 {[%emt 0:00:20]} 35. Rxd5 {[%emt 0:01:02]} Qxg3+ {[%emt 0:00:59]} 36. Kxg3 {[%emt 0:00:03]} Re3+ {[%emt 0:00:06]} 37. Kf4 {[%emt 0:00:17]} Rxc3 {[%emt 0:00:06]} 38. Rd8 {[%emt 0:00:12]} Kf7 {[%emt 0:00:20]} 39. d5 {[%emt 0:00:33]} Rxc2 {[%emt 0:00:56]} 40. Ke4 {[%emt 0:01:32]} Re2+ {[%emt 0:00:14]} 41. Kd4 {[%emt 0:00:03]} b5 {[%emt 0:00:08]} 42. Rb8 {[%emt 0:00:15]} Rd2+ {[%emt 0:01:45]} 43. Ke4 {[%emt 0:00:03]} Re2+ {[%emt 0:05:58]} 44. Kd4 {[%emt 0:00:23]} Rxe5 {[%emt 0:01:12]} 45. Rxb5 {[%emt 0:00:09]} Re2 {[%emt 0:00:41]} 46. g4 {[%emt 0:00:57]} c3 {[%emt 0:02:35]} 47. Kxc3 {[%emt 0:00:15]} Re3+ {[%emt 0:00:03]} 48. Kd4 {[%emt 0:00:20]} Rxh3 {[%emt 0:00:05]} 49. Rb7+ {[%emt 0:01:05]} Kf6 {[%emt 0:01:51]} 50. g5+ {[%emt 0:00:34]} Kg6 {[%emt 0:00:07]} 51. Rxa7 {[%emt 0:02:44]} Nh7 {[%emt 0:00:17]} 52. d6 {[%emt 0:00:39]} Nxg5 {[%emt 0:00:18]} 53. d7 {[%emt 0:00:16]} Rh1 {[%emt 0:00:25]} 54. Kd5 {[%emt 0:00:33]} Rd1+ {[%emt 0:00:38]} 55. Kc6 {[%emt 0:00:02]} Nf7 {[%emt 0:00:52]} 56. Kc7 {[%emt 0:01:23]} Kf6 {[%emt 0:03:33]} 57. Ra2 {[%emt 0:00:28]} Rc1+ {[%emt 0:00:18]} 58. Kb8 {[%emt 0:00:14]} Ke7 {[%emt 0:01:00]} 59. Rf2 {[%emt 0:00:43]} Ne5 {[%emt 0:01:26]} 60. Rg2 {[%emt 0:00:56]} Nxd7+ {[%emt 0:00:08]} 61. Kb7 {[%emt 0:00:07]} Kf7 {[%emt 0:00:12]} 0-1

[Event "Eurasia Open Cup 2019"]
[Site "Ekaterinburg"]
[Date "2019.08.08"]
[Round "8.37"]
[White "Fedotov, Alexey"]
[Black "Tsybikov, Tumen"]
[Result "0-1"]
[ECO "E91"]
[WhiteElo "2141"]
[BlackElo "2281"]
[Annotator "NA"]
[PlyCount "104"]
[EventDate "2019.07.31"]
[EventType "swiss"]
[EventCountry "RUS"]
[SourceTitle "playchess.com"]
[Source "ChessBase"]
[SourceQuality "1"]
[TimeControl "5400+30"]

1. d4 {[%emt 0:00:00]} Nf6 {[%emt 0:00:00]} 2. c4 {[%emt 0:00:00]} c5 {[%emt 0:00:00]} 3. d5 {[%emt 0:00:00]} d6 {[%emt 0:00:00]} 4. Nc3 {[%emt 0:00:31]} g6 {[%emt 0:00:00]} 5. e4 {[%emt 0:00:15]} Bg7 {[%emt 0:00:09]} 6. Nf3 {[%emt 0:00:57]} O-O {[%emt 0:00:00]} 7. Be2 {[%emt 0:01:06]} e6 {[%emt 0:03:31]} 8. O-O {[%emt 0:04:01]} Re8 {[%emt 0:00:38]} 9. Bf4 {[%emt 0:05:39]} e5 {[%emt 0:16:36]} 10. Bg5 {[%emt 0:02:09]} h6 {[%emt 0:01:32]} 11. Bh4 {[%emt 0:06:01]} Rf8 {[%emt 0:02:12]} 12. Ne1 {[%emt 0:03:55]} Qe8 {[%emt 0:01:20]} 13. Nd3 {[%emt 0:03:29]} a6 {[%emt 0:03:19]} 14. a3 {[%emt 0:06:39]} b5 {[%emt 0:06:50]} 15. b4 {[%emt 0:03:39]} g5 {[%emt 0:11:47]} 16. Bg3 {[%emt 0:01:23]} bxc4 {[%emt 0:00:00]} 17. Nb2 {[%emt 0:01:16]} Nbd7 {[%emt 0:00:11]} 18. Nxc4 {[%emt 0:00:41]} Qe7 {[%emt 0:00:04]} 19. Ne3 {[%emt 0:07:05]} Re8 {[%emt 0:03:26]} 20. Nf5 {[%emt 0:04:12]} Qf8 {[%emt 0:00:07]} 21. f3 {[%emt 0:05:39]} Nh5 {[%emt 0:07:34]} 22. Bf2 {[%emt 0:02:05]} Nf4 {[%emt 0:01:23]} 23. Na4 {[%emt 0:05:18]} cxb4 {[%emt 0:02:29]} 24. axb4 {[%emt 0:00:13]} Rb8 {[%emt 0:00:08]} 25. Rb1 {[%emt 0:00:18]} Nf6 {[%emt 0:01:17]} 26. Nxg7 {[%emt 0:06:48]} Qxg7 {[%emt 0:01:12]} 27. Nb6 {[%emt 0:03:21]} Bh3 {[%emt 0:05:04]} 28. gxh3 {[%emt 0:06:53]} Nxh3+ {[%emt 0:00:37]} 29. Kh1 {[%emt 0:01:40]} Nxf2+ {[%emt 0:00:00]} 30. Rxf2 {[%emt 0:00:00]} Rxb6 {[%emt 0:00:09]} 31. Bd3 {[%emt 0:04:28]} Reb8 {[%emt 0:00:07]} 32. Qe1 {[%emt 0:01:07]} Qg6 {[%emt 0:00:59]} 33. Ra2 {[%emt 0:02:41]} Nxd5 {[%emt 0:04:36]} 34. Rxa6 {[%emt 0:00:17]} Rxb4 {[%emt 0:01:19]} 35. Rd1 {[%emt 0:05:04]} Nf4 {[%emt 0:00:29]} 36. Be2 {[%emt 0:04:05]} Rd4 {[%emt 0:05:41]} 37. Rc1 {[%emt 0:01:55]} Rxe4 {[%emt 0:02:07]} 38. Rxd6 {[%emt 0:00:17]} Qxd6 {[%emt 0:00:08]} 39. fxe4 {[%emt 0:00:06]} Rb2 {[%emt 0:00:57]} 40. Bc4 {[%emt 0:02:52]} Qa3 {[%emt 0:02:00]} 41. Qf1 {[%emt 0:00:42]} Qe3 {[%emt 0:00:44]} 42. Re1 {[%emt 0:01:42]} Qd2 {[%emt 0:00:10]} 43. Re2 {[%emt 0:00:00]} Qd4 {[%emt 0:00:49]} 44. Rxb2 {[%emt 0:00:48]} Qxb2 {[%emt 0:00:06]} 45. Bb5 {[%emt 0:00:09]} Qc3 {[%emt 0:02:22]} 46. Ba6 {[%emt 0:00:32]} Kg7 {[%emt 0:00:08]} 47. Bb5 {[%emt 0:00:05]} Qe3 {[%emt 0:00:34]} 48. Bc6 {[%emt 0:00:18]} h5 {[%emt 0:00:30]} 49. Bb7 {[%emt 0:00:53]} g4 {[%emt 0:00:42]} 50. Bc6 {[%emt 0:00:00]} h4 {[%emt 0:01:50]} 51. Bb7 {[%emt 0:00:00]} g3 {[%emt 0:01:14]} 52. hxg3 {[%emt 0:00:00]} hxg3 {[%emt 0:00:00]} 0-1

[Event "Eurasia Open Cup 2019"]
[Site "Ekaterinburg"]
[Date "2019.08.08"]
[Round "8.38"]
[White "Khmelev, Mikhail"]
[Black "Protopopova, Anastasiya"]
[Result "1-0"]
[ECO "B90"]
[WhiteElo "2013"]
[BlackElo "2272"]
[Annotator "NA"]
[PlyCount "49"]
[EventDate "2019.07.31"]
[EventType "swiss"]
[EventCountry "RUS"]
[SourceTitle "playchess.com"]
[Source "ChessBase"]
[SourceQuality "1"]
[TimeControl "5400+30"]

1. e4 {[%emt 0:00:00]} c5 {[%emt 0:00:00]} 2. Nf3 {[%emt 0:00:19]} d6 {[%emt 0:00:00]} 3. d4 {[%emt 0:00:38]} cxd4 {[%emt 0:00:00]} 4. Nxd4 {[%emt 0:00:00]} Nf6 {[%emt 0:00:00]} 5. Nc3 {[%emt 0:00:00]} a6 {[%emt 0:00:00]} 6. h3 {[%emt 0:01:04]} e5 {[%emt 0:00:00]} 7. Nde2 {[%emt 0:00:00]} b5 {[%emt 0:00:46]} 8. g4 {[%emt 0:00:58]} b4 {[%emt 0:00:00]} 9. Nd5 {[%emt 0:00:07]} Nxd5 {[%emt 0:00:09]} 10. Qxd5 {[%emt 0:00:32]} Ra7 {[%emt 0:00:28]} 11. Bg2 {[%emt 0:01:30]} Be6 {[%emt 0:01:24]} 12. Qd1 {[%emt 0:02:11]} Rd7 {[%emt 0:05:16]} 13. Ng3 {[%emt 0:00:41]} d5 {[%emt 0:01:14]} 14. exd5 {[%emt 0:00:11]} Bxd5 {[%emt 0:00:27]} 15. Bxd5 {[%emt 0:00:08]} Rxd5 {[%emt 0:00:06]} 16. Qe2 {[%emt 0:00:23]} Be7 {[%emt 0:09:39]} 17. Be3 {[%emt 0:00:38]} O-O {[%emt 0:01:38]} 18. O-O {[%emt 0:00:04]} Qc7 {[%emt 0:07:59]} 19. Rad1 {[%emt 0:00:00]} Ra5 {[%emt 0:01:33]} 20. Ra1 {[%emt 0:07:26]} Nd7 {[%emt 0:08:47]} 21. Rfd1 {[%emt 0:00:15]} Nf6 {[%emt 0:07:59]} 22. Nf5 {[%emt 0:00:43]} Rc8 {[%emt 0:09:24]} 23. Bb6 {[%emt 0:23:53]} Qxb6 {[%emt 0:03:11]} 24. Nxe7+ {[%emt 0:00:00]} Kf8 {[%emt 0:00:56]} 25. Nxc8 {[%emt 0:00:00]} 1-0

[Event "Eurasia Open Cup 2019"]
[Site "Ekaterinburg"]
[Date "2019.08.08"]
[Round "8.39"]
[White "Druchenko, Mikhail"]
[Black "Garifullina, Leya"]
[Result "0-1"]
[ECO "B50"]
[WhiteElo "1829"]
[BlackElo "2268"]
[Annotator "NA"]
[PlyCount "96"]
[EventDate "2019.07.31"]
[EventType "swiss"]
[EventCountry "RUS"]
[SourceTitle "playchess.com"]
[Source "ChessBase"]
[SourceQuality "1"]
[TimeControl "5400+30"]

1. e4 {[%emt 0:00:00]} c5 {[%emt 0:00:00]} 2. Nf3 {[%emt 0:00:00]} d6 {[%emt 0:00:00]} 3. c3 {[%emt 0:00:00]} Nf6 {[%emt 0:00:00]} 4. Bd3 {[%emt 0:00:00]} Nc6 {[%emt 0:00:16]} 5. O-O {[%emt 0:00:00]} d5 {[%emt 0:00:07]} 6. e5 {[%emt 0:08:04]} c4 {[%emt 0:00:25]} 7. Bc2 {[%emt 0:00:29]} Nd7 {[%emt 0:00:44]} 8. Re1 {[%emt 0:00:46]} Qc7 {[%emt 0:05:48]} 9. d4 {[%emt 0:07:05]} cxd3 {[%emt 0:00:30]} 10. Bxd3 {[%emt 0:00:04]} e6 {[%emt 0:01:28]} 11. Bf4 {[%emt 0:01:10]} Be7 {[%emt 0:01:37]} 12. Nbd2 {[%emt 0:07:51]} Nb6 {[%emt 0:01:19]} 13. c4 {[%emt 0:02:51]} Nb4 {[%emt 0:02:00]} 14. Bf1 {[%emt 0:01:35]} dxc4 {[%emt 0:01:10]} 15. Qc1 {[%emt 0:03:11]} Bd7 {[%emt 0:03:12]} 16. a3 {[%emt 0:01:28]} N4d5 {[%emt 0:04:47]} 17. Nxc4 {[%emt 0:00:24]} Nxc4 {[%emt 0:01:20]} 18. Bxc4 {[%emt 0:00:36]} Nxf4 {[%emt 0:02:37]} 19. Qxf4 {[%emt 0:00:00]} O-O {[%emt 0:01:35]} 20. Rac1 {[%emt 0:03:23]} Qb6 {[%emt 0:00:17]} 21. Qd2 {[%emt 0:00:12]} Bc6 {[%emt 0:00:43]} 22. Qe2 {[%emt 0:01:35]} Rfd8 {[%emt 0:01:45]} 23. Red1 {[%emt 0:02:38]} a5 {[%emt 0:01:32]} 24. Rd3 {[%emt 0:08:28]} Rxd3 {[%emt 0:01:03]} 25. Bxd3 {[%emt 0:00:09]} Rd8 {[%emt 0:00:08]} 26. h3 {[%emt 0:02:52]} g6 {[%emt 0:04:38]} 27. Rc2 {[%emt 0:15:19]} Bc5 {[%emt 0:05:55]} 28. Bc4 {[%emt 0:08:20]} Bd4 {[%emt 0:04:44]} 29. Rd2 {[%emt 0:04:47]} Bxf3 {[%emt 0:00:40]} 30. gxf3 {[%emt 0:00:34]} Rc8 {[%emt 0:00:53]} 31. Rc2 {[%emt 0:01:18]} Qd8 {[%emt 0:03:49]} 32. f4 {[%emt 0:02:03]} Qh4 {[%emt 0:01:17]} 33. Qf3 {[%emt 0:02:37]} b5 {[%emt 0:01:09]} 34. Bd3 {[%emt 0:00:29]} Rxc2 {[%emt 0:00:42]} 35. Bxc2 {[%emt 0:00:04]} Bxb2 {[%emt 0:00:34]} 36. Qe3 {[%emt 0:00:06]} Qd8 {[%emt 0:02:10]} 37. Bd3 {[%emt 0:01:24]} b4 {[%emt 0:00:50]} 38. axb4 {[%emt 0:00:27]} axb4 {[%emt 0:00:03]} 39. Bc2 {[%emt 0:00:14]} Bc3 {[%emt 0:02:48]} 40. Kh2 {[%emt 0:01:21]} Qd5 {[%emt 0:02:02]} 41. Kg3 {[%emt 0:02:24]} Bd2 {[%emt 0:00:56]} 42. Qf3 {[%emt 0:01:03]} Qd4 {[%emt 0:01:40]} 43. Bb3 {[%emt 0:00:42]} Kg7 {[%emt 0:01:16]} 44. Bd1 {[%emt 0:03:09]} h5 {[%emt 0:01:37]} 45. Bc2 {[%emt 0:01:24]} Qc4 {[%emt 0:02:50]} 46. Bb3 {[%emt 0:01:27]} Qf1 {[%emt 0:01:24]} 47. Kh4 {[%emt 0:01:00]} Be1 {[%emt 0:03:42]} 48. Kg3 {[%emt 0:00:00]} h4+ {[%emt 0:00:39]} 0-1

[Event "Eurasia Open Cup 2019"]
[Site "Ekaterinburg"]
[Date "2019.08.08"]
[Round "8.40"]
[White "Akhtariev, Andrey"]
[Black "Kirillov, Anton"]
[Result "0-1"]
[ECO "A11"]
[WhiteElo "2243"]
[BlackElo "1855"]
[Annotator "NA"]
[PlyCount "165"]
[EventDate "2019.07.31"]
[EventType "swiss"]
[EventCountry "RUS"]
[SourceTitle "playchess.com"]
[Source "ChessBase"]
[SourceQuality "1"]
[TimeControl "5400+30"]

1. c4 {[%emt 0:00:00]} c6 {[%emt 0:00:00]} 2. Nc3 {[%emt 0:00:00]} d5 {[%emt 0:00:00]} 3. e4 {[%emt 0:00:00]} dxe4 {[%emt 0:00:14]} 4. Nxe4 {[%emt 0:00:06]} Bf5 {[%emt 0:00:00]} 5. Ng3 {[%emt 0:01:33]} Bg6 {[%emt 0:00:05]} 6. Nf3 {[%emt 0:00:48]} Nd7 {[%emt 0:00:16]} 7. d4 {[%emt 0:03:19]} e6 {[%emt 0:00:16]} 8. Be2 {[%emt 0:00:32]} Ngf6 {[%emt 0:00:32]} 9. O-O {[%emt 0:00:32]} Bd6 {[%emt 0:00:10]} 10. Bd2 {[%emt 0:03:24]} O-O {[%emt 0:03:59]} 11. c5 {[%emt 0:09:50]} Bc7 {[%emt 0:01:10]} 12. Qb3 {[%emt 0:00:42]} Rb8 {[%emt 0:03:29]} 13. Rfd1 {[%emt 0:01:51]} Nd5 {[%emt 0:02:00]} 14. Rac1 {[%emt 0:01:19]} Qe7 {[%emt 0:02:33]} 15. Qa3 {[%emt 0:02:02]} a6 {[%emt 0:01:36]} 16. Re1 {[%emt 0:02:21]} N7f6 {[%emt 0:02:37]} 17. Bc4 {[%emt 0:03:09]} Bf4 {[%emt 0:11:49]} 18. Rcd1 {[%emt 0:02:11]} Rfd8 {[%emt 0:11:00]} 19. Bf1 {[%emt 0:03:44]} Bxg3 {[%emt 0:06:31]} 20. hxg3 {[%emt 0:00:33]} Bh5 {[%emt 0:00:06]} 21. b4 {[%emt 0:01:43]} Rd7 {[%emt 0:01:18]} 22. Qb3 {[%emt 0:01:08]} Rbd8 {[%emt 0:03:16]} 23. a4 {[%emt 0:01:20]} Nc7 {[%emt 0:01:20]} 24. Bc3 {[%emt 0:02:30]} Nfd5 {[%emt 0:00:31]} 25. Bb2 {[%emt 0:00:32]} Bxf3 {[%emt 0:04:38]} 26. gxf3 {[%emt 0:00:11]} h5 {[%emt 0:00:52]} 27. f4 {[%emt 0:00:56]} Qf6 {[%emt 0:01:37]} 28. Re5 {[%emt 0:00:51]} h4 {[%emt 0:02:55]} 29. Be2 {[%emt 0:00:41]} g6 {[%emt 0:06:23]} 30. Kg2 {[%emt 0:01:53]} Kg7 {[%emt 0:04:47]} 31. Qf3 {[%emt 0:01:18]} Rh8 {[%emt 0:01:12]} 32. Rh1 {[%emt 0:00:21]} Rdd8 {[%emt 0:00:51]} 33. Bd3 {[%emt 0:00:58]} Rh7 {[%emt 0:06:09]} 34. Bc1 {[%emt 0:07:29]} Nxb4 {[%emt 0:03:55]} 35. Bb1 {[%emt 0:04:12]} Nbd5 {[%emt 0:01:04]} 36. Qg4 {[%emt 0:04:22]} Ne7 {[%emt 0:10:41]} 37. Qf3 {[%emt 0:08:29]} hxg3 {[%emt 0:01:13]} 38. Rxh7+ {[%emt 0:00:57]} Kxh7 {[%emt 0:00:04]} 39. fxg3 {[%emt 0:00:08]} Nf5 {[%emt 0:00:12]} 40. Bb2 {[%emt 0:01:22]} Rd5 {[%emt 0:00:31]} 41. Re1 {[%emt 0:02:12]} Nxd4 {[%emt 0:01:47]} 42. Qe3 {[%emt 0:04:12]} Qd8 {[%emt 0:01:49]} 43. Be4 {[%emt 0:01:20]} Rd7 {[%emt 0:01:48]} 44. Rd1 {[%emt 0:04:15]} e5 {[%emt 0:00:14]} 45. Qd2 {[%emt 0:05:20]} Nce6 {[%emt 0:01:03]} 46. fxe5 {[%emt 0:02:12]} Kg8 {[%emt 0:00:32]} 47. Qb4 {[%emt 0:04:52]} Nc2 {[%emt 0:01:25]} 48. Rxd7 {[%emt 0:00:40]} Nxb4 {[%emt 0:00:07]} 49. Rxd8+ {[%emt 0:00:03]} Nxd8 {[%emt 0:00:02]} 50. Ba3 {[%emt 0:01:05]} a5 {[%emt 0:00:32]} 51. Bc1 {[%emt 0:01:44]} Ne6 {[%emt 0:00:09]} 52. Be3 {[%emt 0:00:28]} Na6 {[%emt 0:00:12]} 53. Bc2 {[%emt 0:01:04]} Naxc5 {[%emt 0:00:13]} 54. Bd2 {[%emt 0:00:09]} b6 {[%emt 0:00:47]} 55. Bd1 {[%emt 0:01:01]} Nd4 {[%emt 0:01:40]} 56. Be3 {[%emt 0:00:21]} Nce6 {[%emt 0:00:28]} 57. Bd2 {[%emt 0:00:27]} Kf8 {[%emt 0:00:10]} 58. Kf2 {[%emt 0:00:11]} Ke7 {[%emt 0:00:09]} 59. g4 {[%emt 0:00:13]} Kd7 {[%emt 0:03:24]} 60. Ke3 {[%emt 0:00:09]} c5 {[%emt 0:01:01]} 61. Kd3 {[%emt 0:00:14]} Nc6 {[%emt 0:00:36]} 62. Bc3 {[%emt 0:01:20]} Ned4 {[%emt 0:00:05]} 63. Ke4 {[%emt 0:01:00]} Ke6 {[%emt 0:00:18]} 64. g5 {[%emt 0:00:46]} Nxe5 {[%emt 0:00:50]} 65. Bxd4 {[%emt 0:00:27]} cxd4 {[%emt 0:00:03]} 66. Kxd4 {[%emt 0:00:03]} Kd6 {[%emt 0:00:11]} 67. Be2 {[%emt 0:00:13]} Nc6+ {[%emt 0:00:13]} 68. Kc4 {[%emt 0:00:27]} Nd8 {[%emt 0:00:16]} 69. Kb5 {[%emt 0:01:20]} Kc7 {[%emt 0:00:09]} 70. Bf3 {[%emt 0:00:13]} Ne6 {[%emt 0:00:09]} 71. Bd5 {[%emt 0:00:04]} Nxg5 {[%emt 0:00:12]} 72. Bc6 {[%emt 0:00:04]} f5 {[%emt 0:01:08]} 73. Be8 {[%emt 0:00:07]} f4 {[%emt 0:00:06]} 74. Kc4 {[%emt 0:00:09]} Nf3 {[%emt 0:01:07]} 75. Kd3 {[%emt 0:01:05]} g5 {[%emt 0:00:28]} 76. Ke4 {[%emt 0:00:03]} Nd2+ {[%emt 0:01:36]} 77. Kd3 {[%emt 0:00:04]} Nb3 {[%emt 0:00:12]} 78. Ke4 {[%emt 0:00:46]} Nc5+ {[%emt 0:00:12]} 79. Kf5 {[%emt 0:00:17]} f3 {[%emt 0:00:19]} 80. Kg4 {[%emt 0:00:21]} f2 {[%emt 0:00:14]} 81. Bb5 {[%emt 0:00:02]} Ne4 {[%emt 0:00:09]} 82. Kf3 {[%emt 0:00:13]} f1=Q+ {[%emt 0:00:07]} 83. Ke3 {[%emt 0:00:45]} 0-1